[Event "Early-Titled-Tuesday-Blitz-February-27-2024"]
[Site "Chess.com"]
[Date "2024.02.27"]
[Round "11"]
[White "Viacheslav92"]
[Black "lagunanivaria"]
[Result "1/2-1/2"]
[WhiteElo "2530"]
[BlackElo "2436"]
[TimeControl "180+1"]
[EndTime "10:07:35 PST"]
[Termination "Game drawn by 50-move rule"]

1. e4 {[%clk 0:03:00.9]} 1... e5 {[%clk 0:02:59.2]} 2. Nf3 {[%clk 0:03:00.6]}
2... Nc6 {[%clk 0:02:59.7]} 3. Bc4 {[%clk 0:02:56.5]} 3... Nf6 {[%clk
0:02:59.2]} 4. d4 {[%clk 0:02:56.1]} 4... exd4 {[%clk 0:02:55.4]} 5. O-O {[%clk
0:02:55.2]} 5... Nxe4 {[%clk 0:02:55.1]} 6. Re1 {[%clk 0:02:54.5]} 6... d5
{[%clk 0:02:55.6]} 7. Bxd5 {[%clk 0:02:55]} 7... Qxd5 {[%clk 0:02:56.5]} 8. Nc3
{[%clk 0:02:55]} 8... Qh5 {[%clk 0:02:54.8]} 9. Nxe4 {[%clk 0:02:54.8]} 9... Be6
{[%clk 0:02:52.3]} 10. Bg5 {[%clk 0:02:54.7]} 10... Bd6 {[%clk 0:02:50.7]} 11.
Nxd6+ {[%clk 0:02:43.6]} 11... cxd6 {[%clk 0:02:51.6]} 12. Bf4 {[%clk
0:02:43.9]} 12... Qd5 {[%clk 0:02:50.3]} 13. c3 {[%clk 0:02:42.6]} 13... O-O
{[%clk 0:02:50.6]} 14. Nxd4 {[%clk 0:02:41]} 14... Nxd4 {[%clk 0:02:51]} 15.
Qxd4 {[%clk 0:02:40.4]} 15... Qxd4 {[%clk 0:02:50]} 16. cxd4 {[%clk 0:02:41.3]}
16... d5 {[%clk 0:02:50.9]} 17. Rac1 {[%clk 0:02:37.3]} 17... Rac8 {[%clk
0:02:50.5]} 18. f3 {[%clk 0:02:36.3]} 18... Rxc1 {[%clk 0:02:39.7]} 19. Rxc1
{[%clk 0:02:31.1]} 19... Rc8 {[%clk 0:02:40.6]} 20. Rxc8+ {[%clk 0:02:14.5]}
20... Bxc8 {[%clk 0:02:41.5]} 21. Kf2 {[%clk 0:02:14.3]} 21... Kf8 {[%clk
0:02:42]} 22. Bd6+ {[%clk 0:02:12.2]} 22... Ke8 {[%clk 0:02:42.1]} 23. Ke3
{[%clk 0:02:12.7]} 23... Kd7 {[%clk 0:02:42.2]} 24. Bf8 {[%clk 0:02:13.4]} 24...
g6 {[%clk 0:02:40.5]} 25. Kf4 {[%clk 0:02:13.9]} 25... h5 {[%clk 0:02:40.9]} 26.
Ke5 {[%clk 0:02:12.2]} 26... Kc6 {[%clk 0:02:40.4]} 27. h3 {[%clk 0:02:01]}
27... Be6 {[%clk 0:02:39.6]} 28. g4 {[%clk 0:02:00]} 28... Kd7 {[%clk
0:02:32.2]} 29. Kf6 {[%clk 0:01:58]} 29... hxg4 {[%clk 0:02:31.9]} 30. fxg4
{[%clk 0:01:57.2]} 30... Ke8 {[%clk 0:02:29.3]} 31. Bc5 {[%clk 0:01:52.2]} 31...
b6 {[%clk 0:02:27.7]} 32. Bb4 {[%clk 0:01:50]} 32... Bd7 {[%clk 0:02:24.1]} 33.
Ke5 {[%clk 0:01:34.5]} 33... Bb5 {[%clk 0:02:19.9]} 34. Kxd5 {[%clk 0:01:22.6]}
34... Bf1 {[%clk 0:02:19.5]} 35. h4 {[%clk 0:01:18.3]} 35... Be2 {[%clk
0:02:16.8]} 36. g5 {[%clk 0:01:17.1]} 36... Kd7 {[%clk 0:02:16.7]} 37. Ke5
{[%clk 0:01:15.4]} 37... Bc4 {[%clk 0:02:16.3]} 38. a3 {[%clk 0:01:15]} 38... a6
{[%clk 0:02:14.7]} 39. d5 {[%clk 0:01:13.2]} 39... Ba2 {[%clk 0:02:13.5]} 40.
Bf8 {[%clk 0:01:13.1]} 40... Bb3 {[%clk 0:02:13.1]} 41. Bb4 {[%clk 0:01:10.8]}
41... Ba2 {[%clk 0:02:13.1]} 42. Bd2 {[%clk 0:01:11.4]} 42... a5 {[%clk
0:01:59.6]} 43. Be1 {[%clk 0:01:03.1]} 43... a4 {[%clk 0:01:59.7]} 44. Bf2
{[%clk 0:01:01.2]} 44... b5 {[%clk 0:02:00]} 45. Kd4 {[%clk 0:01:01.7]} 45...
Bc4 {[%clk 0:02:00.1]} 46. Kc5 {[%clk 0:01:02.1]} 46... Be2 {[%clk 0:01:59.5]}
47. Bd4 {[%clk 0:01:01.1]} 47... Bf1 {[%clk 0:01:59.7]} 48. Bc3 {[%clk
0:00:58.1]} 48... Be2 {[%clk 0:01:59.7]} 49. Kd4 {[%clk 0:00:58.5]} 49... Bf1
{[%clk 0:01:59.7]} 50. Ke5 {[%clk 0:00:59.2]} 50... Bc4 {[%clk 0:01:59.8]} 51.
Bb4 {[%clk 0:00:59.5]} 51... Bb3 {[%clk 0:01:59.2]} 52. Bf8 {[%clk 0:01:00.1]}
52... Bc4 {[%clk 0:01:59.4]} 53. Bg7 {[%clk 0:01:00.7]} 53... Bb3 {[%clk
0:01:59.7]} 54. Kd4 {[%clk 0:01:01]} 54... Bd1 {[%clk 0:01:59.4]} 55. Kc5 {[%clk
0:01:01.6]} 55... Be2 {[%clk 0:01:59.6]} 56. Be5 {[%clk 0:01:01.8]} 56... Bf1
{[%clk 0:01:59.6]} 57. Kb4 {[%clk 0:00:57]} 57... Be2 {[%clk 0:01:59.3]} 58. b3
{[%clk 0:00:57.1]} 58... axb3 {[%clk 0:01:59.1]} 59. Kxb3 {[%clk 0:00:58]} 59...
Bf1 {[%clk 0:01:59]} 60. Kb4 {[%clk 0:00:58.2]} 60... Be2 {[%clk 0:01:59.2]} 61.
Kc5 {[%clk 0:00:58.5]} 61... Bf1 {[%clk 0:01:59.3]} 62. Bf4 {[%clk 0:00:58.8]}
62... Be2 {[%clk 0:01:59.6]} 63. Bd2 {[%clk 0:00:57.4]} 63... Bf1 {[%clk
0:01:59.7]} 64. Bb4 {[%clk 0:00:58]} 64... Be2 {[%clk 0:01:59.9]} 65. Kd4 {[%clk
0:00:58.9]} 65... Bf1 {[%clk 0:02:00]} 66. Ke5 {[%clk 0:00:59.8]} 66... Bc4
{[%clk 0:02:00.1]} 67. Ke4 {[%clk 0:00:59.9]} 67... Bf1 {[%clk 0:01:58.8]} 68.
Kd4 {[%clk 0:00:59.9]} 68... Be2 {[%clk 0:01:59.1]} 69. Bc5 {[%clk 0:00:59.7]}
69... Bf1 {[%clk 0:01:59]} 70. Ke5 {[%clk 0:01:00.3]} 70... Bc4 {[%clk
0:01:58.8]} 71. Ke4 {[%clk 0:00:55.1]} 71... Bf1 {[%clk 0:01:58.4]} 72. Kd4
{[%clk 0:00:55.6]} 72... Be2 {[%clk 0:01:58.5]} 73. Kc3 {[%clk 0:00:56.2]} 73...
Bf1 {[%clk 0:01:58.5]} 74. Kb4 {[%clk 0:00:56.7]} 74... Be2 {[%clk 0:01:58.6]}
75. Kc3 {[%clk 0:00:54.9]} 75... Bf1 {[%clk 0:01:58.3]} 76. Kd2 {[%clk
0:00:55.5]} 76... Bc4 {[%clk 0:01:58.1]} 77. d6 {[%clk 0:00:56]} 77... Bd5
{[%clk 0:01:55.4]} 78. Bb4 {[%clk 0:00:55.8]} 78... Bc4 {[%clk 0:01:55.1]} 79.
Ke3 {[%clk 0:00:56.7]} 79... Bd5 {[%clk 0:01:55.1]} 80. Kd4 {[%clk 0:00:57.3]}
80... Bg2 {[%clk 0:01:43.3]} 81. Ke5 {[%clk 0:00:54.3]} 81... Bf1 {[%clk
0:01:42.6]} 82. Kd4 {[%clk 0:00:52.3]} 82... Be2 {[%clk 0:01:41.9]} 83. Ke4
{[%clk 0:00:52]} 83... Bf1 {[%clk 0:01:42.3]} 84. Ke5 {[%clk 0:00:52.2]} 84...
Be2 {[%clk 0:01:42.3]} 85. Kd4 {[%clk 0:00:52.3]} 85... Bf1 {[%clk 0:01:42.2]}
86. Kc3 {[%clk 0:00:52.5]} 86... Be2 {[%clk 0:01:42.3]} 87. Kd2 {[%clk
0:00:53.4]} 87... Bf1 {[%clk 0:01:42.4]} 88. Ke3 {[%clk 0:00:53.3]} 88... Bc4
{[%clk 0:01:42.1]} 89. Kf4 {[%clk 0:00:53.4]} 89... Bd3 {[%clk 0:01:42.2]} 90.
Kg4 {[%clk 0:00:53.7]} 90... Be2+ {[%clk 0:01:42]} 91. Kg3 {[%clk 0:00:54.3]}
91... Bc4 {[%clk 0:01:42.4]} 92. Kf3 {[%clk 0:00:54.8]} 92... Bd5+ {[%clk
0:01:42.3]} 93. Ke3 {[%clk 0:00:54.8]} 93... Bg2 {[%clk 0:01:41.8]} 94. Bc5
{[%clk 0:00:55]} 94... Kc6 {[%clk 0:01:39.6]} 95. Kd4 {[%clk 0:00:53.3]} 95...
Kd7 {[%clk 0:01:39.8]} 96. Ke5 {[%clk 0:00:49.8]} 96... Bf1 {[%clk 0:01:39.6]}
97. Kd4 {[%clk 0:00:48]} 97... Be2 {[%clk 0:01:39.7]} 98. Ke4 {[%clk 0:00:36.7]}
98... Bf1 {[%clk 0:01:39.5]} 99. Ke5 {[%clk 0:00:37]} 99... Bc4 {[%clk
0:01:39.2]} 100. Kf6 {[%clk 0:00:37.5]} 100... Bb3 {[%clk 0:01:36.7]} 101. Kg7
{[%clk 0:00:34.8]} 101... Bc4 {[%clk 0:01:34.6]} 102. Kh6 {[%clk 0:00:35.3]}
102... Be2 {[%clk 0:01:33.5]} 103. Kh7 {[%clk 0:00:35.7]} 103... Bf3 {[%clk
0:01:33]} 104. Kg8 {[%clk 0:00:35.8]} 104... Bd5 {[%clk 0:01:33.4]} 105. Kg7
{[%clk 0:00:35.1]} 105... Bc4 {[%clk 0:01:31.3]} 106. Kf6 {[%clk 0:00:35.4]}
106... Bd5 {[%clk 0:01:31.4]} 107. Ke5 {[%clk 0:00:35]} 107... Bc4 {[%clk
0:01:31.7]} 108. Kd4 {[%clk 0:00:35.4]} 108... Bf1 {[%clk 0:01:31.8]} 109. Bb4
{[%clk 0:00:34.8]} 109... Be2 {[%clk 0:01:31.1]} 110. Kc5 {[%clk 0:00:34.9]}
110... Bf1 {[%clk 0:01:30.9]} 111. Kb6 {[%clk 0:00:34.7]} 111... Be2 {[%clk
0:01:31.1]} 112. Kc5 {[%clk 0:00:32.1]} 112... Bf1 {[%clk 0:01:31.5]} 113. Kd5
{[%clk 0:00:33]} 113... Be2 {[%clk 0:01:32]} 114. Ke5 {[%clk 0:00:32.3]} 114...
Bf1 {[%clk 0:01:32.4]} 115. Kf4 {[%clk 0:00:32.2]} 115... Bc4 {[%clk 0:01:32.2]}
116. Kg4 {[%clk 0:00:32.6]} 116... Be2+ {[%clk 0:01:32]} 117. Kg3 {[%clk
0:00:33.1]} 117... Bc4 {[%clk 0:01:32.3]} 118. Kf2 {[%clk 0:00:33.2]} 118... Bd5
{[%clk 0:01:32.1]} 119. Ke1 {[%clk 0:00:34.1]} 119... Bc4 {[%clk 0:01:32.3]}
120. Kd1 {[%clk 0:00:35]} 120... Bd5 {[%clk 0:01:32.7]} 121. Kc1 {[%clk
0:00:35.9]} 121... Bc4 {[%clk 0:01:33.2]} 122. Kb2 {[%clk 0:00:36.8]} 122... Bf1
{[%clk 0:01:33.6]} 123. Kc3 {[%clk 0:00:37.3]} 123... Be2 {[%clk 0:01:33.5]}
124. Bc5 {[%clk 0:00:37.5]} 124... Bf1 {[%clk 0:01:33.8]} 125. Bd4 {[%clk
0:00:37.6]} 125... Be2 {[%clk 0:01:34.1]} 126. Be5 {[%clk 0:00:37.9]} 126... Bf1
{[%clk 0:01:34.2]} 127. Kd4 {[%clk 0:00:38.3]} 1/2-1/2

[Event "Early-Titled-Tuesday-Blitz-February-27-2024"]
[Site "Chess.com"]
[Date "2024.02.27"]
[Round "11"]
[White "Brave_spirit12"]
[Black "ValeriyGrinev"]
[Result "1-0"]
[WhiteElo "2706"]
[BlackElo "2584"]
[TimeControl "180+1"]
[EndTime "10:07:43 PST"]
[Termination "Brave_spirit12 won by resignation"]

1. e4 {[%clk 0:03:00.9]} 1... c5 {[%clk 0:02:58.9]} 2. c3 {[%clk 0:03:00.9]}
2... Nf6 {[%clk 0:02:58.4]} 3. e5 {[%clk 0:03:01.2]} 3... Nd5 {[%clk 0:02:59.1]}
4. d4 {[%clk 0:03:02.1]} 4... cxd4 {[%clk 0:02:59.7]} 5. Nf3 {[%clk 0:03:02.5]}
5... d6 {[%clk 0:02:59.2]} 6. Bc4 {[%clk 0:03:01.5]} 6... e6 {[%clk 0:02:58.8]}
7. cxd4 {[%clk 0:02:58.3]} 7... Be7 {[%clk 0:02:56.5]} 8. O-O {[%clk 0:02:58.4]}
8... O-O {[%clk 0:02:57.1]} 9. Qe2 {[%clk 0:02:58.7]} 9... b6 {[%clk 0:02:56.4]}
10. Nbd2 {[%clk 0:02:55.1]} 10... Bb7 {[%clk 0:02:56]} 11. Ne4 {[%clk
0:02:55.7]} 11... dxe5 {[%clk 0:02:54]} 12. dxe5 {[%clk 0:02:55.4]} 12... Nd7
{[%clk 0:02:53]} 13. Nd6 {[%clk 0:02:47.6]} 13... Bxd6 {[%clk 0:02:41]} 14. exd6
{[%clk 0:02:48.5]} 14... Rc8 {[%clk 0:02:39.5]} 15. Bg5 {[%clk 0:02:42.8]} 15...
N7f6 {[%clk 0:02:36.4]} 16. Bxd5 {[%clk 0:02:37.1]} 16... Bxd5 {[%clk
0:02:34.4]} 17. Ne5 {[%clk 0:02:37.5]} 17... Qxd6 {[%clk 0:02:31.6]} 18. Bxf6
{[%clk 0:02:23.6]} 18... gxf6 {[%clk 0:02:32.5]} 19. Ng4 {[%clk 0:02:05.7]}
19... Qf4 {[%clk 0:02:24.3]} 20. Ne3 {[%clk 0:02:00.6]} 20... Bb7 {[%clk
0:02:17]} 21. Rac1 {[%clk 0:01:50.8]} 21... f5 {[%clk 0:02:10.3]} 22. Qh5 {[%clk
0:01:44.9]} 22... Kg7 {[%clk 0:02:00.3]} 23. Rcd1 {[%clk 0:01:25.5]} 23... Rfd8
{[%clk 0:01:57.9]} 24. h3 {[%clk 0:00:43.5]} 24... h6 {[%clk 0:01:55.2]} 25. Qe2
{[%clk 0:00:40.8]} 25... Qa4 {[%clk 0:01:48.3]} 26. b3 {[%clk 0:00:38]} 26...
Qe4 {[%clk 0:01:46.8]} 27. f3 {[%clk 0:00:35.7]} 27... Qe5 {[%clk 0:01:43.8]}
28. Qf2 {[%clk 0:00:32.2]} 28... Kh7 {[%clk 0:01:35.3]} 29. Nc4 {[%clk 0:00:28]}
29... Qf4 {[%clk 0:01:30.9]} 30. Rfe1 {[%clk 0:00:21.9]} 30... Ba6 {[%clk
0:01:20.9]} 31. Ne3 {[%clk 0:00:14.9]} 31... Bd3 {[%clk 0:01:17.1]} 32. Rd2
{[%clk 0:00:08.8]} 32... Bb5 {[%clk 0:01:12.4]} 33. Red1 {[%clk 0:00:09.2]}
33... Rxd2 {[%clk 0:01:11.8]} 34. Rxd2 {[%clk 0:00:10.1]} 34... Rc1+ {[%clk
0:01:10.1]} 35. Nd1 {[%clk 0:00:10.2]} 35... Qe5 {[%clk 0:01:02.1]} 36. f4
{[%clk 0:00:09.1]} 36... Qa1 {[%clk 0:01:00.8]} 37. Qf3 {[%clk 0:00:09.7]} 37...
Bc6 {[%clk 0:00:56]} 38. Qh5 {[%clk 0:00:09.6]} 38... Kg7 {[%clk 0:00:54]} 39.
Kh2 {[%clk 0:00:10]} 39... Qf6 {[%clk 0:00:49.6]} 40. Rd3 {[%clk 0:00:10]} 40...
Rc2 {[%clk 0:00:44.4]} 41. Rg3+ {[%clk 0:00:10.2]} 41... Kf8 {[%clk 0:00:45]}
42. Ne3 {[%clk 0:00:10.9]} 42... Rxa2 {[%clk 0:00:41.7]} 43. Qd1 {[%clk
0:00:09.6]} 43... Ke7 {[%clk 0:00:36.4]} 44. Rg8 {[%clk 0:00:07.2]} 44... Be8
{[%clk 0:00:18.3]} 45. Nc4 {[%clk 0:00:03.9]} 45... e5 {[%clk 0:00:16.9]} 46.
fxe5 {[%clk 0:00:04.8]} 46... Qc6 {[%clk 0:00:16.8]} 47. Nd6 {[%clk 0:00:03]}
47... Bd7 {[%clk 0:00:15.4]} 48. Nxf5+ {[%clk 0:00:02.9]} 48... Bxf5 {[%clk
0:00:12.8]} 49. Qd8+ {[%clk 0:00:02.4]} 49... Ke6 {[%clk 0:00:13.1]} 50. Re8+
{[%clk 0:00:03.2]} 50... Qxe8 {[%clk 0:00:12.9]} 51. Qxe8+ {[%clk 0:00:04.1]}
51... Kd5 {[%clk 0:00:13.5]} 52. Qxf7+ {[%clk 0:00:03.9]} 52... Kxe5 {[%clk
0:00:13.6]} 53. Qg7+ {[%clk 0:00:03.3]} 53... Ke6 {[%clk 0:00:13.4]} 54. Qxh6+
{[%clk 0:00:03.6]} 54... Ke5 {[%clk 0:00:14.1]} 55. Qe3+ {[%clk 0:00:04.1]}
55... Be4 {[%clk 0:00:14.5]} 56. Qg3+ {[%clk 0:00:03.6]} 56... Kd5 {[%clk
0:00:14.1]} 57. Qg5+ {[%clk 0:00:03.6]} 57... Kd4 {[%clk 0:00:13.7]} 58. Qf6+
{[%clk 0:00:03.5]} 58... Ke3 {[%clk 0:00:13.4]} 59. Qg5+ {[%clk 0:00:03.7]}
59... Kd4 {[%clk 0:00:13.8]} 60. Qg7+ {[%clk 0:00:02.9]} 60... Ke3 {[%clk
0:00:14]} 61. Qh6+ {[%clk 0:00:02.7]} 61... Kd4 {[%clk 0:00:14]} 62. Qd6+ {[%clk
0:00:03.4]} 62... Ke3 {[%clk 0:00:14.3]} 63. Qg3+ {[%clk 0:00:03.2]} 63... Kd4
{[%clk 0:00:14]} 64. Qg7+ {[%clk 0:00:02.8]} 64... Kd3 {[%clk 0:00:13.9]} 65.
Qd7+ {[%clk 0:00:02.7]} 65... Kc3 {[%clk 0:00:13.9]} 66. Qc7+ {[%clk 0:00:02.4]}
66... Kd4 {[%clk 0:00:13.4]} 67. h4 {[%clk 0:00:02.4]} 67... Rxg2+ {[%clk
0:00:12.7]} 68. Kh3 {[%clk 0:00:03]} 68... Rc2 {[%clk 0:00:12.7]} 69. Qd6+
{[%clk 0:00:03.3]} 69... Bd5 {[%clk 0:00:13.1]} 70. h5 {[%clk 0:00:03.1]} 70...
Rc3+ {[%clk 0:00:13.2]} 71. Kh4 {[%clk 0:00:03.4]} 71... Rxb3 {[%clk 0:00:12.9]}
72. Qf4+ {[%clk 0:00:04]} 72... Kc5 {[%clk 0:00:12.8]} 73. h6 {[%clk 0:00:04.6]}
73... Rb4 {[%clk 0:00:13.1]} 74. Qxb4+ {[%clk 0:00:04.5]} 74... Kxb4 {[%clk
0:00:13.7]} 75. h7 {[%clk 0:00:05.4]} 75... Bc4 {[%clk 0:00:14.2]} 76. h8=Q
{[%clk 0:00:06.3]} 76... a5 {[%clk 0:00:14.8]} 77. Qb2+ {[%clk 0:00:07]} 77...
Kc5 {[%clk 0:00:14.9]} 78. Kg3 {[%clk 0:00:07.5]} 78... b5 {[%clk 0:00:14.5]}
79. Kf4 {[%clk 0:00:08.4]} 79... b4 {[%clk 0:00:13.7]} 80. Ke5 {[%clk
0:00:09.3]} 80... a4 {[%clk 0:00:14.1]} 81. Qd4+ {[%clk 0:00:10.2]} 81... Kb5
{[%clk 0:00:14.6]} 82. Kd6 {[%clk 0:00:11.1]} 82... a3 {[%clk 0:00:14.2]} 83.
Qc5+ {[%clk 0:00:12]} 83... Ka4 {[%clk 0:00:14.8]} 84. Qxc4 {[%clk 0:00:12.8]}
84... a2 {[%clk 0:00:13.4]} 85. Qxa2+ {[%clk 0:00:11.8]} 1-0

[Event "Early-Titled-Tuesday-Blitz-February-27-2024"]
[Site "Chess.com"]
[Date "2024.02.27"]
[Round "11"]
[White "GeorgiosSouleidis"]
[Black "Russian_berezka"]
[Result "1/2-1/2"]
[WhiteElo "2703"]
[BlackElo "2595"]
[TimeControl "180+1"]
[EndTime "10:07:50 PST"]
[Termination "Game drawn by stalemate"]

1. e4 {[%clk 0:03:00.9]} 1... c5 {[%clk 0:02:59.9]} 2. Be2 {[%clk 0:03:00.8]}
2... e6 {[%clk 0:02:57.2]} 3. d3 {[%clk 0:03:01.2]} 3... Nc6 {[%clk 0:02:54.8]}
4. f4 {[%clk 0:03:01.7]} 4... g6 {[%clk 0:02:53.6]} 5. Nf3 {[%clk 0:03:02.2]}
5... Bg7 {[%clk 0:02:53.9]} 6. O-O {[%clk 0:03:02.9]} 6... d6 {[%clk 0:02:54.1]}
7. c3 {[%clk 0:03:03.5]} 7... f5 {[%clk 0:02:47]} 8. Be3 {[%clk 0:03:00.4]} 8...
Nge7 {[%clk 0:02:45.8]} 9. Nbd2 {[%clk 0:02:56.4]} 9... O-O {[%clk 0:02:45.1]}
10. a3 {[%clk 0:02:53.2]} 10... b5 {[%clk 0:02:43.7]} 11. Qb3 {[%clk 0:02:31]}
11... Rb8 {[%clk 0:02:40.5]} 12. Ng5 {[%clk 0:02:22.5]} 12... Qd7 {[%clk
0:02:34.9]} 13. Rae1 {[%clk 0:02:19.9]} 13... h6 {[%clk 0:02:33.7]} 14. Ngf3
{[%clk 0:02:20]} 14... Kh7 {[%clk 0:02:25.4]} 15. e5 {[%clk 0:01:59.3]} 15...
Nd5 {[%clk 0:02:14.2]} 16. Bd1 {[%clk 0:01:50.1]} 16... Nxe3 {[%clk 0:02:05.4]}
17. Rxe3 {[%clk 0:01:51]} 17... dxe5 {[%clk 0:01:59.6]} 18. Nxe5 {[%clk
0:01:51.9]} 18... Nxe5 {[%clk 0:01:58.5]} 19. fxe5 {[%clk 0:01:51.8]} 19... Bb7
{[%clk 0:01:39.7]} 20. Bf3 {[%clk 0:01:51.4]} 20... c4 {[%clk 0:01:36.7]} 21.
Qc2 {[%clk 0:01:46.7]} 21... f4 {[%clk 0:01:36.6]} 22. Ree1 {[%clk 0:01:40.4]}
22... cxd3 {[%clk 0:01:30.9]} 23. Qb3 {[%clk 0:01:40.1]} 23... Rf5 {[%clk
0:01:20.9]} 24. Bxb7 {[%clk 0:01:32.8]} 24... Rxb7 {[%clk 0:01:19.5]} 25. Nf3
{[%clk 0:01:33.3]} 25... g5 {[%clk 0:01:07.9]} 26. h3 {[%clk 0:01:33]} 26... Qd5
{[%clk 0:00:58.7]} 27. Qxd5 {[%clk 0:01:31.7]} 27... exd5 {[%clk 0:00:59.6]} 28.
Rd1 {[%clk 0:01:24.6]} 28... Bxe5 {[%clk 0:00:58.3]} 29. Rxd3 {[%clk 0:01:24.6]}
29... Bc7 {[%clk 0:00:52.8]} 30. Rfd1 {[%clk 0:01:19.8]} 30... Bb6+ {[%clk
0:00:52.6]} 31. Kf1 {[%clk 0:01:20.5]} 31... Rd7 {[%clk 0:00:53.3]} 32. b3
{[%clk 0:01:16.7]} 32... h5 {[%clk 0:00:41.9]} 33. c4 {[%clk 0:01:14.4]} 33...
bxc4 {[%clk 0:00:41.6]} 34. bxc4 {[%clk 0:01:15.3]} 34... g4 {[%clk 0:00:41.9]}
35. hxg4 {[%clk 0:01:15.7]} 35... hxg4 {[%clk 0:00:42.3]} 36. Nh2 {[%clk
0:01:11.5]} 36... g3 {[%clk 0:00:29.6]} 37. Nf3 {[%clk 0:01:11.7]} 37... d4
{[%clk 0:00:27.3]} 38. Nxd4 {[%clk 0:01:12.1]} 38... Rh5 {[%clk 0:00:22.7]} 39.
Nf3 {[%clk 0:01:07.6]} 39... Rh1+ {[%clk 0:00:21.9]} 40. Ke2 {[%clk 0:01:07.7]}
40... Rxd1 {[%clk 0:00:12.6]} 41. Rxd1 {[%clk 0:01:04.8]} 41... Re7+ {[%clk
0:00:13]} 42. Kf1 {[%clk 0:00:49.4]} 42... Bc5 {[%clk 0:00:13.9]} 43. a4 {[%clk
0:00:46.9]} 43... Kg6 {[%clk 0:00:12]} 44. Rd5 {[%clk 0:00:45.9]} 44... Be3
{[%clk 0:00:12]} 45. Ke2 {[%clk 0:00:38]} 45... Rb7 {[%clk 0:00:11]} 46. Rb5
{[%clk 0:00:34.4]} 46... Rc7 {[%clk 0:00:10.2]} 47. Kd3 {[%clk 0:00:33.5]} 47...
Rd7+ {[%clk 0:00:08.5]} 48. Ke4 {[%clk 0:00:34]} 48... Rd1 {[%clk 0:00:06.5]}
49. c5 {[%clk 0:00:27.9]} 49... Rc1 {[%clk 0:00:05.7]} 50. c6 {[%clk 0:00:26.1]}
50... Kf6 {[%clk 0:00:04.6]} 51. Rh5 {[%clk 0:00:17.4]} 51... Kg6 {[%clk
0:00:03.3]} 52. Rd5 {[%clk 0:00:14]} 52... Kf6 {[%clk 0:00:02.4]} 53. Rh5 {[%clk
0:00:11.7]} 53... Kg6 {[%clk 0:00:02.4]} 54. Rg5+ {[%clk 0:00:12.3]} 54... Kf6
{[%clk 0:00:02.8]} 55. Rf5+ {[%clk 0:00:07.2]} 55... Ke6 {[%clk 0:00:02.5]} 56.
Ng5+ {[%clk 0:00:07.1]} 56... Kd6 {[%clk 0:00:02.8]} 57. Rf6+ {[%clk 0:00:07.1]}
57... Kc7 {[%clk 0:00:03.2]} 58. Ne6+ {[%clk 0:00:07.1]} 58... Kb6 {[%clk
0:00:02.7]} 59. Nxf4 {[%clk 0:00:06.8]} 59... Bxf4 {[%clk 0:00:02.6]} 60. Kxf4
{[%clk 0:00:07.4]} 60... Rf1+ {[%clk 0:00:02.8]} 61. Ke5 {[%clk 0:00:07.4]}
61... Rf2 {[%clk 0:00:03]} 62. a5+ {[%clk 0:00:04.4]} 62... Kc7 {[%clk
0:00:02.7]} 63. a6 {[%clk 0:00:02.7]} 63... Rxg2 {[%clk 0:00:02.2]} 64. Rg6
{[%clk 0:00:01.3]} 64... Re2+ {[%clk 0:00:02.4]} 65. Kd5 {[%clk 0:00:02]} 65...
g2 {[%clk 0:00:03.1]} 66. Rg7+ {[%clk 0:00:02.2]} 66... Kb6 {[%clk 0:00:03.8]}
67. Rb7+ {[%clk 0:00:02.5]} 67... Kxa6 {[%clk 0:00:03.8]} 68. Rg7 {[%clk
0:00:03.4]} 68... Rd2+ {[%clk 0:00:04.1]} 69. Kc5 {[%clk 0:00:03.7]} 69... Rc2+
{[%clk 0:00:04.9]} 70. Kd6 {[%clk 0:00:04.2]} 70... Kb6 {[%clk 0:00:04.7]} 71.
Rb7+ {[%clk 0:00:03.9]} 71... Ka6 {[%clk 0:00:05.6]} 72. Rg7 {[%clk 0:00:02.6]}
72... Rd2+ {[%clk 0:00:06.5]} 73. Kc7 {[%clk 0:00:03]} 73... Rc2 {[%clk
0:00:07.4]} 74. Rg5 {[%clk 0:00:03.1]} 74... Rd2 {[%clk 0:00:05.3]} 75. Kb8
{[%clk 0:00:02.6]} 75... Rb2+ {[%clk 0:00:05.2]} 76. Kc8 {[%clk 0:00:03.1]}
76... Rc2 {[%clk 0:00:05.2]} 77. c7 {[%clk 0:00:03.7]} 77... Kb6 {[%clk
0:00:05.4]} 78. Rg6+ {[%clk 0:00:04.3]} 78... Kb5 {[%clk 0:00:05.8]} 79. Kb8
{[%clk 0:00:04.9]} 79... a5 {[%clk 0:00:05.2]} 80. Rxg2 {[%clk 0:00:04.2]} 80...
Rxg2 {[%clk 0:00:04.6]} 81. c8=Q {[%clk 0:00:04]} 81... Rb2 {[%clk 0:00:04.1]}
82. Qb7+ {[%clk 0:00:04]} 82... Ka4 {[%clk 0:00:03.8]} 83. Qxb2 {[%clk
0:00:04.9]} 1/2-1/2